fUST/lending_fUST_20251106
["ID","MTS","AMOUNT","RATE_DAILY","PERIOD"]
[393237705,1762368065198,3451.22239193,0.00014284,2]
[393237706,1762368065806,300.0,0.000144,2]
[393237707,1762368066232,-180.65511358,0.00014428,2]
[393237708,1762368067582,300.0,0.000144,2]
[393237709,1762368068835,-151.0,0.00014428,2]
[393237710,1762368069418,300.0,0.000144,2]
[393237711,1762368072730,1000.0,0.00013699,2]
[393237712,1762368073488,2712.41293072,0.00014284,2]
[393237713,1762368074167,-272.12689936,0.00014428,2]
[393237714,1762368076079,300.0,0.000144,2]
[393237716,1762368078848,300.0,0.000144,2]
[393237717,1762368079980,-190.32195139,0.00014428,2]
[393237718,1762368080178,300.0,0.000144,2]
[393237719,1762368081590,-227.20202614,0.00014428,2]
[393237720,1762368082062,2440.28603136,0.00014284,2]
[393237721,1762368084005,-245.27588994,0.00014428,2]
[393237722,1762368086668,-294.79700951,0.00014428,2]
[393237723,1762368086849,300.0,0.000144,2]
[393237724,1762368088860,-312.21737059,0.00014428,2]
[393237725,1762368089100,300.0,0.000144,2]
[393237726,1762368089933,1482.68915438,0.00014284,2]
[393237727,1762368090697,300.0,0.000144,2]
[393237728,1762368090971,-167.76404163,0.00014428,2]
[393237729,1762368092831,300.0,0.000143,2]
[393237730,1762368093491,-229.19257902,0.00014428,2]
[393237731,1762368096171,-281.56134234,0.00014428,2]
[393237732,1762368097774,300.0,0.000144,2]
[393237733,1762368097975,491.9538208,0.00014284,2]
[393237734,1762368100232,300.0,0.000144,2]
[393237735,1762368100710,300.0,0.000144,2]
[393237736,1762368101116,-271.03465328,0.00014428,2]
[393237737,1762368102506,1224.2264879,0.00013699,2]
[393237738,1762368102722,300.0,0.000143,2]
[393237739,1762368103328,-220.91916752,0.00014428,2]
[393237740,1762368103351,-5.71511967,0.00014436,2]
[393237741,1762368108232,300.0,0.000144,2]
[393237742,1762368111114,300.0,0.000144,2]
[393237743,1762368111531,300.0,0.000144,2]
[393237744,1762368112741,300.0,0.000143,2]
[393237745,1762368114068,300.0,0.000144,2]
[393237754,1762368297236,169.5040302,6.884e-05,2]
[393237758,1762368310509,-131.18553342,0.00014436,2]
[393237759,1762368310532,-25.17591689,0.00014445,2]
[393237760,1762368310554,-19.12625804,0.00014464,2]
[393237761,1762368313740,-277.31296788,0.0001444,2]
[393237762,1762368325709,473.8079869,0.00013942,2]
[393237763,1762368363533,2228.35102374,0.00014397,2]
[393237764,1762368403118,1386.0136524,0.00013496,2]
[393237765,1762368422010,1247.26952653,0.00014253,2]
[393237766,1762368432543,211.4954251,0.00013496,2]
[393237767,1762368455565,949.40427045,0.00013942,2]
[393237768,1762368517037,183.84562676,0.00014395,2]
[393237769,1762368521990,183.84562676,0.00014396,2]
[393237863,1762368632409,-54.38889627,0.0001444,2]
[393237865,1762368632418,-300.0,0.00014494,2]
[393237867,1762368632427,-259.0,0.00014494,2]
[393237869,1762368632436,-300.0,0.00014494,2]
[393237871,1762368632445,-300.0,0.00014494,2]
[393237873,1762368632454,-300.0,0.00014494,2]
[393237874,1762368632464,-1200.0,0.00014494,2]
[393237876,1762368632473,-272.30534249,0.00014495,2]
[393237878,1762368632482,-192.71415045,0.00014495,2]
[393237881,1762368632497,-246.56370472,0.00014495,2]
[393237883,1762368632506,-1200.0,0.00014495,2]
[393237885,1762368632515,-427.82683181,0.00014496,2]
[393237887,1762368632526,-49572.17316819,0.00014496,2]
[393237889,1762368632535,-151.0,0.00014496,2]
[393237891,1762368632544,-151.0,0.00014496,2]
[393237893,1762368632553,-151.0,0.00014496,2]
[393237895,1762368632562,-151.0,0.00014496,2]
[393237897,1762368632571,-151.0,0.00014496,2]
[393237899,1762368632580,-217.264089,0.00014496,2]
[393237901,1762368632590,-151.0,0.00014497,2]
[393237903,1762368632599,-151.0,0.00014497,2]
[393237905,1762368632610,-153.818684,0.00014497,2]
[393237907,1762368632619,-151.0,0.00014497,2]
[393237908,1762368632628,-151.0,0.00014497,2]
[393237910,1762368632637,-151.0,0.00014497,2]
[393237912,1762368632646,-151.0,0.00014497,2]
[393237914,1762368632655,-151.0,0.00014497,2]
[393237916,1762368632664,-151.0,0.00014497,2]
[393237918,1762368632673,-151.0,0.00014497,2]
[393237920,1762368632682,-151.0,0.00014497,2]
[393237922,1762368632691,-151.0,0.00014497,2]
[393237924,1762368632707,-151.0,0.00014497,2]
[393237926,1762368632717,-151.0,0.00014497,2]
[393237928,1762368632726,-151.0,0.00014497,2]
[393237930,1762368632735,-151.0,0.00014497,2]
[393237932,1762368632744,-151.0,0.00014497,2]
[393237933,1762368632752,-151.0,0.00014497,2]
[393237934,1762368632761,-151.0,0.00014497,2]
[393237935,1762368632770,-162.808692,0.00014497,2]
[393237936,1762368632779,-358.956906,0.00014497,2]
[393237937,1762368632788,-358.956906,0.00014497,2]
[393237938,1762368632797,-358.956906,0.00014497,2]
[393237939,1762368632806,-358.956906,0.00014497,2]
[393237940,1762368632815,-358.956906,0.00014497,2]
[393237941,1762368632824,-358.956906,0.00014497,2]
[393237942,1762368632832,-358.956906,0.00014497,2]
[393237943,1762368632841,-358.956906,0.00014497,2]
[393237944,1762368632850,-358.956906,0.00014497,2]
[393237945,1762368632859,-358.956906,0.00014497,2]
[393237946,1762368632868,-358.956906,0.00014497,2]
[393237947,1762368632876,-358.956906,0.00014497,2]
[393237948,1762368632886,-358.956906,0.00014497,2]
[393237949,1762368632895,-358.956906,0.00014497,2]
[393237950,1762368632904,-358.956906,0.00014497,2]
[393237951,1762368632913,-358.956906,0.00014497,2]
[393237952,1762368632922,-358.956906,0.00014497,2]
[393237953,1762368632930,-358.956906,0.00014497,2]
[393237954,1762368632939,-358.956906,0.00014497,2]
[393237955,1762368632948,-358.956901,0.00014497,2]
[393237956,1762368632957,-151.0,0.00014497,2]
[393237957,1762368632965,-153.59902826,0.00014497,2]
[393237958,1762368632974,-500.0,0.00014497,2]
[393237959,1762368632985,-500.0,0.00014497,2]
[393237960,1762368632993,-720.300453,0.00014498,2]
[393237961,1762368633002,-720.300453,0.00014498,2]
[393237962,1762368633011,-1123.77344,0.00014498,2]
[393237964,1762368633020,-720.300453,0.00014498,2]
[393237966,1762368633030,-350.14333457,0.00014498,2]
[393237982,1762368633176,3135.97686136,0.00013495,2]
[393237985,1762368633196,7242.11981574,0.00013495,2]
[393238199,1762368637883,-323.53189413,0.00014467,2]
[393238201,1762368637892,-370.15711843,0.00014498,2]
[393238203,1762368637902,-1123.77344,0.00014498,2]
[393238205,1762368637911,-720.300453,0.00014498,2]
[393238207,1762368637920,-720.300453,0.00014498,2]
[393238209,1762368637930,-1123.77344,0.00014498,2]
[393238211,1762368637939,-1123.77344,0.00014498,2]
[393238213,1762368637948,-720.300453,0.00014498,2]
[393238214,1762368637957,-720.300453,0.00014498,2]
[393238216,1762368637966,-368.35425548,0.00014498,2]
[393238218,1762368637978,-490.48,0.00014498,2]
[393238298,1762368640581,-3e-08,0.00014494,2]
[393238322,1762368645033,2757.89018426,0.00014349,2]
[393238323,1762368645055,10000.01,0.00014349,2]
[393238324,1762368645076,7613.01855127,0.00014349,2]
[393238355,1762368650638,10000.01,0.00014349,2]
[393238356,1762368650660,10000.01,0.00014349,2]
[393238357,1762368650681,370.89873553,0.00014349,2]
[393238358,1762368653825,1949.80714572,0.000144,2]
[393238359,1762368658817,7452.62215805,0.00014349,2]
[393238360,1762368666614,10000.01,0.00014349,2]
[393238361,1762368666639,10000.01,0.00014349,2]
[393238362,1762368666661,2170.89873552,0.00014349,2]
[393238363,1762368667768,-1386.59299564,0.0002,20]
[393238364,1762368669984,206.08894803,0.00014341,2]
[393238365,1762368674624,10000.01,0.00014349,2]
[393238366,1762368674649,10000.01,0.00014349,2]
[393238367,1762368674676,2170.89873552,0.00014349,2]
[393238370,1762368690370,25960.52635619,0.00014349,2]
[393238371,1762368696657,555.63264397,0.00014394,2]
[393238372,1762368698807,19950.34036882,0.00014349,2]
[393238373,1762368708537,50619.43534219,0.00014397,2]
[393238374,1762368708564,634380.56465781,0.00014397,2]
[393238375,1762368714637,25960.52635619,0.00014349,2]
[393238376,1762368718509,-499.99999997,0.00014494,2]
[393238377,1762368718535,-500.0,0.00014494,2]
[393238378,1762368718560,-400.00000003,0.00014494,2]
[393238379,1762368722418,5000.0,0.00014349,2]
[393238380,1762368738127,300.0,0.00014348,2]
[393238381,1762368745979,300.0,0.00014348,2]
[393238383,1762368752207,2043.0,0.00032876,120]
[393238384,1762368755348,1002.942424,0.00013699,2]
[393238385,1762368755471,500.0,0.00014493,2]
[393238386,1762368755505,500.0,0.00014493,2]
[393238387,1762368755547,500.0,0.00014493,2]
[393238388,1762368755577,500.0,0.00014493,2]
[393238389,1762368755613,404.04187926,0.00014493,2]
[393238390,1762368755646,500.0,0.00014493,2]
[393238391,1762368755676,500.0,0.00014493,2]
[393238392,1762368755717,500.0,0.00014493,2]
[393238393,1762368755747,396.28470313,0.00014493,2]
[393238394,1762368755781,500.0,0.00014493,2]
[393238395,1762368755812,500.0,0.00014493,2]
[393238396,1762368755847,500.0,0.00014493,2]
[393238397,1762368755885,500.0,0.00014493,2]
[393238398,1762368755916,500.0,0.00014493,2]
[393238399,1762368755946,335.45222582,0.00014493,2]
[393238400,1762368756099,500.0,0.00014493,2]
[393238401,1762368756145,500.0,0.00014493,2]
[393238402,1762368756177,500.0,0.00014493,2]
[393238403,1762368756211,275.9499993,0.00014493,2]
[393238404,1762368756248,85.33876849,0.00014493,2]
[393238405,1762368760581,-414.66123151,0.00014493,2]
[393238406,1762368760608,-404.9578584,0.00014493,2]
[393238407,1762368760637,-500.0,0.00014493,2]
[393238408,1762368760671,-500.0,0.00014493,2]
[393238409,1762368760701,-500.0,0.00014493,2]
[393238410,1762368760728,-500.0,0.00014493,2]
[393238411,1762368760756,-500.0,0.00014493,2]
[393238412,1762368760783,-500.0,0.00014493,2]
[393238413,1762368760809,-500.0,0.00014493,2]
[393238414,1762368760837,-500.0,0.00014493,2]
[393238415,1762368761294,11252.12340777,0.00014348,2]
[393238416,1762368762368,1200.0,0.00014347,2]
[393238417,1762368762678,2000.0,0.00032876,120]
[393238418,1762368769506,9700.0,0.00014348,2]
[393238419,1762368784708,300.0,0.00014347,2]
[393238420,1762368792576,300.0,0.00014347,2]
[393238421,1762368807783,300.0,0.00014347,2]
[393238422,1762368815438,300.0,0.00014347,2]
[393238423,1762368831597,300.0,0.00014347,2]
[393238424,1762368839451,300.0,0.00014347,2]
[393238425,1762368855631,300.0,0.00014347,2]
[393238426,1762368863976,300.0,0.00014347,2]
[393238427,1762368878310,68448.33093539,0.00014396,2]
[393238428,1762368878343,477403.11226731,0.00014396,2]
[393238429,1762368880582,-179.7089758,0.00014347,2]
[393238430,1762368884453,-120.2910242,0.00014347,2]
[393238431,1762368884478,-33.28588297,0.00014396,2]
[393238432,1762368887762,-298.49479573,0.00014252,2]
[393238433,1762368889833,-232.36596771,0.00014252,2]
[393238434,1762368892033,-156.56208986,0.00014252,2]
[393238435,1762368893575,-382.36596771,0.00014252,2]
[393238436,1762368902624,-235.73576301,0.00014252,2]
[393238437,1762368902746,7730.21117899,0.00014109,2]
[393238438,1762368903570,-7494.47541598,0.00014252,2]
[393238439,1762368903592,-1808.99145426,0.00014392,2]
[393238440,1762368903613,-300.0,0.00014395,2]
[393238441,1762368903633,-300.0,0.00014395,2]
[393238442,1762368903654,-300.0,0.00014395,2]
[393238443,1762368903680,-300.0,0.00014395,2]
[393238444,1762368910496,160.0,0.00027162,120]
[393238445,1762368910547,-300.0,0.00014396,2]
[393238446,1762368910789,1200.0,0.00014395,2]
[393238447,1762368911978,160.0,0.0002852,120]
[393238448,1762368913286,-190.25917108,0.00014396,2]
[393238449,1762368913799,300.0,0.00014395,2]
[393238450,1762368916639,-296.77305768,0.00014396,2]
[393238451,1762368918261,-207.40908845,0.00014396,2]
[393238452,1762368918706,151.0,0.0003758,30]
[393238453,1762368919331,156.587,0.0003758,30]
[393238454,1762368919771,-180.60251544,0.00014396,2]
[393238455,1762368920434,162.380719,0.0003758,30]
[393238456,1762368920469,-88266.53312976,0.00014396,2]
[393238457,1762368921081,162.380719,0.0003758,30]
[393238458,1762368933397,296.77305768,0.00014109,2]
[393238459,1762368934541,4545.46389281,0.00013958,2]
[393238460,1762368934765,-225.64279042,0.00014252,2]
[393238461,1762368938621,-207.25518694,0.00014252,2]
[393238462,1762368940971,-203.05,0.00014252,2]
[393238463,1762368943060,-299.36812368,0.00014252,2]
[393238464,1762368946677,-156.69884262,0.00014252,2]
[393238465,1762368948797,-407.43103388,0.00014252,2]
[393238466,1762368951641,-197.71412428,0.00014252,2]
[393238467,1762368953267,-387.74800724,0.00014252,2]
[393238468,1762368971763,-462.35723293,0.00014252,2]
[393238469,1762368973289,-238.98064205,0.00014251,2]
[393238470,1762368975526,1047.90940036,0.00017755,7]
[393238471,1762368975910,-61.01935795,0.00014251,2]
[393238472,1762368975933,-118.54841592,0.00014252,2]
[393238473,1762368977481,-225.28556917,0.00014252,2]
[393238474,1762368979077,-156.01068577,0.00014252,2]
[393238475,1762368983607,-294.26931423,0.00014252,2]
[393238476,1762369000592,-197.3277777,0.00014251,2]
[393238477,1762369000616,-65.10713199,0.00014251,2]
[393238478,1762369002164,-266.67515437,0.00014251,2]
[393238479,1762369004375,-168.21771364,0.00014251,2]
[393238480,1762369004400,-281.78228636,0.00014251,2]
[393238481,1762369007643,-218.21771364,0.00014251,2]
[393238482,1762369007666,-33.44895863,0.00014251,2]
[393238483,1762369009785,-188.87729272,0.00014251,2]
[393238484,1762369012462,-253.44630284,0.00014251,2]
[393238485,1762369015936,-24.22744581,0.00014251,2]
[393238486,1762369015960,-357.81559867,0.00014251,2]
[393238487,1762369017861,-142.18440133,0.00014251,2]
[393238488,1762369017883,-337.74043807,0.00014251,2]
[393238489,1762369020633,-162.25956193,0.00014251,2]
[393238490,1762369020655,-220.11599029,0.00014251,2]
[393238491,1762369023247,-288.4700298,0.0001425,2]
[393238492,1762369024755,-11.5299702,0.0001425,2]
[393238493,1762369024779,-151.57209494,0.00014251,2]
[393238494,1762369026378,-128.31191477,0.00014251,2]
[393238495,1762369026403,-171.68808523,0.00014251,2]
[393238496,1762369028523,-186.51937999,0.00014251,2]
[393238497,1762369030053,-141.79253478,0.00014251,2]
[393238498,1762369030074,-43.2533315,0.00014251,2]
[393238499,1762369032138,-188.03514188,0.00014251,2]
[393238500,1762369032165,-60.54079836,0.00014251,2]
[393238501,1762369034169,-168.08021821,0.00014251,2]
[393238504,1762369036847,-271.37898343,0.00014251,2]
[393238505,1762369036869,-69.16208783,0.00014251,2]
[393238506,1762369039478,-169.56028027,0.00014251,2]
[393238507,1762369042940,-261.2776319,0.00014251,2]
[393238508,1762369042966,-69.40617374,0.00014251,2]
[393238509,1762369045026,-333.66712899,0.00014251,2]
[393238510,1762369051706,-96.92669727,0.00014251,2]
[393238511,1762369051732,-186.33158586,0.00014251,2]
[393238512,1762369055020,-163.41345922,0.00014251,2]
[393238513,1762369057218,-150.25495492,0.00014251,2]
[393238514,1762369057242,-202.61440663,0.00014251,2]
[393238515,1762369059454,-230.6892767,0.00014251,2]
[393238516,1762369075623,-308.83400442,0.0001425,2]
[393238517,1762369077169,-171.48244664,0.0001425,2]
[393238518,1762369078734,-155.41481188,0.0001425,2]
[393238519,1762369080375,-163.80336321,0.0001425,2]
[393238523,1762369084343,-300.0,0.0001425,2]
[393238524,1762369085788,-100.46537385,0.0001425,2]
[393238525,1762369085810,-80.4470126,0.0001425,2]
[393238526,1762369088451,-217.4862081,0.0001425,2]
[393238527,1762369089941,-2.0667793,0.0001425,2]
[393238528,1762369089962,-170.21542156,0.00014251,2]
[393238535,1762369106134,-160.14743677,0.00014251,2]
[393238536,1762369108166,-238.74911559,0.00014251,2]
[393238538,1762369110143,-328.13905222,0.00014251,2]
[393238541,1762369112214,-345.38455942,0.00014251,2]
[393238544,1762369116642,-300.58959537,0.0001425,2]
[393238548,1762369118639,-196.28083808,0.0001425,2]
[393238549,1762369120599,7088.99879675,0.00014107,2]
[393238552,1762369122955,-3.12956655,0.0001425,2]
[393238553,1762369122976,-388.54600928,0.0001425,2]
[393238554,1762369125083,-49.61838555,0.0001425,2]
[393238555,1762369125106,-162.58174492,0.0001425,2]
[393238557,1762369127838,-236.60456641,0.0001425,2]
[393238559,1762369129894,-100.81368867,0.0001425,2]
[393238560,1762369129917,-69.9358716,0.0001425,2]
[393238561,1762369132083,-164.84330196,0.0001425,2]
[393238564,1762369133697,-147.72514429,0.0001425,2]
[393238565,1762369133722,-97.79365968,0.0001425,2]
[393238573,1762369143962,5471.12601976,0.00014107,2]
[393238575,1762369144520,-471.12601976,0.0001425,2]
[393238576,1762369144547,-54.28180142,0.0001425,2]
[393238577,1762369145997,-177.96086052,0.0001425,2]
[393238579,1762369148103,-212.724126,0.0001425,2]
[393238582,1762369150308,-55.03321206,0.0001425,2]
[393238583,1762369150331,-174.09629505,0.0001425,2]
[393238585,1762369151815,-325.90370495,0.0001425,2]
[393238587,1762369151838,-241.06226618,0.0001425,2]
[393238588,1762369153893,-159.24989287,0.0001425,2]
[393238589,1762369156537,-99.68784095,0.0001425,2]
[393238590,1762369156561,-200.31215905,0.0001425,2]
[393238591,1762369159163,-299.68784095,0.0001425,2]
[393238592,1762369159191,-111.16354706,0.0001425,2]
[393238593,1762369162510,-169.65502158,0.0001425,2]
[393238594,1762369164751,-219.18143136,0.0001425,2]
[393238595,1762369164902,-17.32215957,0.0001425,2]
[393238596,1762369166789,215.6294634,0.00013353,2]
[393238597,1762369167275,2719.18143136,0.00014107,2]
[393238598,1762369167808,-374.8536954,0.0001425,2]
[393238599,1762369169238,-107.82414503,0.0001425,2]
[393238600,1762369169262,-53.91937791,0.0001425,2]
[393238601,1762369171651,-364.7884786,0.00014151,2]
[393238602,1762369173145,-396.68672198,0.00014151,2]
[393238603,1762369177773,-156.23987852,0.00014151,2]
[393238604,1762369179996,-157.37654015,0.00014151,2]
[393238605,1762369183895,-243.71007522,0.00014151,2]
[393238606,1762369186131,-294.18324461,0.00014151,2]
[393238607,1762369187560,-94.67348819,0.00014151,2]
[393238608,1762369187585,-446.08062209,0.0001425,2]
[393238609,1762369187607,-182.5760492,0.0001425,2]
[393238610,1762369189086,-300.0,0.0001425,2]
[393238611,1762369189887,388.8567328,0.00014009,2]
[393238612,1762369191778,-17.4239508,0.0001425,2]
[393238613,1762369191801,-172.71360255,0.0001425,2]
[393238614,1762369194118,-275.60228214,0.0001425,2]
[393238615,1762369197290,-51.68411531,0.0001425,2]
[393238616,1762369197314,-236.12099722,0.0001425,2]
[393238617,1762369198879,-242.86820836,0.0001425,2]
[393238618,1762369200382,-21.01079442,0.0001425,2]
[393238619,1762369200417,-225.44425756,0.00014251,2]
[393238620,1762369202035,-210.68987737,0.00014251,2]
[393238621,1762369204656,-255.97949698,0.0001425,2]
[393238622,1762369208510,-44.02050302,0.0001425,2]
[393238623,1762369208533,-208.08493101,0.0001425,2]
[393238624,1762369210738,-91.91506899,0.0001425,2]
[393238625,1762369210762,-300.0,0.0001425,2]
[393238626,1762369210783,-31.38639063,0.00014251,2]
[393238627,1762369212679,-287.72258982,0.00014251,2]
[393238628,1762369212778,644.02050302,0.00014108,2]
[393238629,1762369214203,-158.86447604,0.00014251,2]
[393238630,1762369217448,-223.97224377,0.00014251,2]
[393238631,1762369220048,-210.09170906,0.00014251,2]
[393238632,1762369221150,508.08493101,0.00014108,2]
[393238633,1762369221740,-211.25012539,0.00014251,2]
[393238634,1762369223164,-153.33194213,0.00014251,2]
[393238635,1762369224746,-172.41846922,0.00014251,2]
[393238637,1762369227799,-410.95013948,0.00014251,2]
[393238638,1762369230302,-177.96086052,0.00014251,2]
[393238639,1762369231836,-155.79163807,0.00014251,2]
[393238640,1762369234241,-331.70542319,0.00014251,2]
[393238641,1762369237028,10000.01,0.00014108,2]
[393238642,1762369237050,10000.01,0.00014108,2]
[393238643,1762369237077,21568.696972,0.00014108,2]
[393238644,1762369237118,-214.56281874,0.00014251,2]
[393238645,1762369239545,-223.30027415,0.00014251,2]
[393238646,1762369244715,457.33194213,0.00014108,2]
[393238647,1762369245091,-175.15076369,0.00014251,2]
[393238648,1762369252502,-455.42158726,0.00014251,2]
[393238650,1762369254488,-326.41691859,0.00014251,2]
[393238651,1762369260956,5383.48680624,0.00014108,2]
[393238652,1762369263264,-376.80671459,0.00014251,2]
[393238653,1762369264545,527.77231877,0.0001798,7]
[393238654,1762369268848,-180.60251544,0.0001425,2]
[393238655,1762369270419,-119.39748456,0.0001425,2]
[393238656,1762369270441,-44.25916198,0.00014251,2]
[393238659,1762369283812,326.39071205,0.00014108,2]
[393238660,1762369297165,331.6782811,0.00013411,2]
[393238661,1762369334123,394.8090703,0.00013426,2]
[393238665,1762369389520,843.94019888,0.0001798,7]
[393238667,1762369397450,1247.26952653,0.00014042,2]
[393238679,1762369456268,999.0,0.00013396,2]
[393238680,1762369472836,197.49658115,0.00014108,2]
[393238685,1762369536998,8734.95575339,0.0003287,120]
[393238689,1762369566129,2111.08927506,0.00017946,7]
[393238690,1762369568925,4749.9508689,0.00018072,7]
[393238694,1762369604314,15000.0,0.00018,7]
[393238699,1762369636219,29842.35945791,0.000191,9]
[393238700,1762369666381,-326.39071205,0.00014275,2]
[393238701,1762369670849,206.32633965,0.00017946,7]
[393238702,1762369677588,219.10995762,0.0001425,2]
[393238703,1762369680008,-300.0,0.00014394,2]
[393238704,1762369680037,-1200.0,0.00014394,2]
[393238705,1762369680066,-300.0,0.00014394,2]
[393238706,1762369680094,-1200.0,0.00014394,2]
[393238707,1762369685888,603.72452307,0.00014251,2]
[393238709,1762369690219,20000.0,0.000181,5]
[393238710,1762369694494,175.56558164,0.00014251,2]
[393238711,1762369699093,150.0,0.00016656,3]
[393238712,1762369699409,150.0,0.00016356,3]
[393238713,1762369702820,772.38044415,0.00014251,2]
[393238714,1762369703566,3611.36,0.00012329,2]
[393238716,1762369714068,3009.47,0.00012329,2]
[393238717,1762369724549,2507.89,0.00012329,2]
[393238718,1762369735248,98.90955585,0.00012329,2]
[393238719,1762369735270,1991.00044415,0.00012329,2]
[393238720,1762369740103,2081.5003568,0.00014297,2]
[393238721,1762369745711,1741.59,0.00012329,2]
[393238723,1762369756200,1451.32,0.00012329,2]
[393238724,1762369766712,1209.44,0.00012329,2]
[393238725,1762369772106,-396.54663105,0.00014395,2]
[393238726,1762369772128,-375.8338131,0.00014395,2]
[393238727,1762369772147,-300.0,0.00014395,2]
[393238728,1762369772166,-300.0,0.00014395,2]
[393238729,1762369772186,-300.0,0.00014395,2]
[393238730,1762369772207,-57.51604682,0.00014396,2]
[393238731,1762369777154,1007.86,0.00012329,2]
[393238732,1762369787664,839.89,0.00012329,2]
[393238734,1762369798189,699.9,0.00012329,2]
[393238735,1762369802404,300.0,0.00014395,2]
[393238736,1762369803043,275.0,0.00014395,2]
[393238737,1762369803089,300.0,0.00014395,2]
[393238738,1762369803317,1909.79,0.00014251,2]
[393238739,1762369803630,1909.79,0.00014251,2]
[393238740,1762369803920,1909.79,0.00014251,2]
[393238741,1762369804167,300.0,0.00014395,2]
[393238742,1762369804222,1555.85,0.00014251,2]
[393238743,1762369804244,353.94,0.00014251,2]
[393238744,1762369804517,1909.79,0.00014251,2]
[393238745,1762369804794,1909.79,0.00014395,2]
[393238746,1762369805423,1909.79,0.00014395,2]
[393238747,1762369805717,1909.79,0.00014395,2]
[393238748,1762369808719,583.25,0.00012329,2]
[393238749,1762369809269,1200.0,0.00014395,2]
[393238750,1762369819442,223.66,0.00012329,2]
[393238751,1762369819464,262.39,0.00012329,2]
[393238752,1762369820697,2337.57403599,0.00014252,2]
[393238758,1762369829887,405.04,0.00012329,2]
[393238795,1762369832295,-15.35032987,0.00014396,2]
[393238796,1762369832306,-447.41297437,0.00014396,2]
[393238817,1762369838126,-14359.1,0.00014396,2]
[393238819,1762369838137,-8221.99999999,0.00014396,2]
[393238822,1762369838149,-26572.31460087,0.00014396,2]
[393238823,1762369838159,-1183.69614289,0.00014397,2]
[393238826,1762369838170,-917.86110506,0.00014397,2]
[393238828,1762369838180,-434.56964094,0.00014398,2]
[393238830,1762369838190,-50000.0,0.00014399,2]
[393238832,1762369838200,-398.19,0.000144,2]
[393238834,1762369838210,-240.09,0.000144,2]
[393238836,1762369838219,-240.09,0.000144,2]
[393238838,1762369838229,-240.09,0.000144,2]
[393238840,1762369838239,-240.09,0.000144,2]
[393238842,1762369838249,-240.09,0.000144,2]
[393238844,1762369838260,-240.09,0.000144,2]
[393238846,1762369838270,-240.09,0.000144,2]
[393238848,1762369838279,-240.09,0.000144,2]
[393238850,1762369838289,-240.09,0.000144,2]
[393238852,1762369838298,-240.09,0.000144,2]
[393238854,1762369838307,-240.09,0.000144,2]
[393238856,1762369838317,-240.09,0.000144,2]
[393238858,1762369838326,-240.09,0.000144,2]
[393238860,1762369838335,-240.09,0.000144,2]
[393238862,1762369838345,-240.09,0.000144,2]
[393238864,1762369838355,-240.09,0.000144,2]
[393238866,1762369838364,-240.09,0.000144,2]
[393238868,1762369838374,-240.09,0.000144,2]
[393238870,1762369838383,-240.09,0.000144,2]
[393238872,1762369838392,-240.09,0.000144,2]
[393238874,1762369838401,-240.09,0.000144,2]
[393238876,1762369838410,-240.09,0.000144,2]
[393238878,1762369838420,-240.09,0.000144,2]
[393238880,1762369838430,-240.09,0.000144,2]
[393238882,1762369838440,-240.09,0.000144,2]
[393238884,1762369838450,-240.09,0.000144,2]
[393238885,1762369838459,-240.09,0.000144,2]
[393238887,1762369838469,-240.09,0.000144,2]
[393238890,1762369838479,-240.09,0.000144,2]
[393238891,1762369838488,-240.09,0.000144,2]
[393238893,1762369838498,-240.09,0.000144,2]